fUSD/lending_fUSD_20260509
["ID","MTS","AMOUNT","RATE_DAILY","PERIOD"]
[421907810,1778321612000,-500.0,0.00011999,2]
[421907815,1778321613000,-11.52699431,0.00011999,2]
[421907816,1778321613000,-150.0,0.00012766,2]
[421907813,1778321613000,-214.73073128,0.00011999,2]
[421907814,1778321613000,-285.26926872,0.00011999,2]
[421907817,1778321613000,-338.47300569,0.00012767,2]
[421907818,1778321648000,2008.888137,7.945e-05,2]
[421907819,1778321703000,165.0,0.00022624,120]
[421907820,1778321772000,214.6944635,0.00026773,120]
[421907821,1778321801000,277.29052186,0.00026773,120]
[421907823,1778321967000,257.63335619,0.00026773,120]
[421907824,1778322080000,500.0,0.00027399,120]
[421907826,1778322081000,500.0,0.00028999,120]
[421907825,1778322081000,500.0,0.00028099,120]
[421907827,1778322271000,1558.929,0.00030137,120]
[421907828,1778322464000,2076.50360892,0.0003013,120]
[421907829,1778322619000,234.42111144,0.00027149,120]
[421907868,1778322632000,-2544.6653,0.00013863,2]
[421907872,1778322632000,-200.0,0.00013883,2]
[421907866,1778322632000,-519.92,0.0001386,2]
[421907867,1778322632000,-9999.99,0.0001386,2]
[421907870,1778322632000,-746.88331931,0.00013882,2]
[421907871,1778322632000,-746.88331931,0.00013882,2]
[421907873,1778322632000,-500.0,0.00013883,2]
[421907865,1778322632000,-2158.98,0.00013788,2]
[421907864,1778322632000,-6348.04815402,0.00013763,2]
[421907861,1778322632000,-200.0,0.00013699,2]
[421907862,1778322632000,-166.82,0.00013699,2]
[421907869,1778322632000,-255.0,0.00013864,2]
[421907874,1778322632000,-151.0,0.00013883,2]
[421907877,1778322632000,-500.0,0.00013883,2]
[421907876,1778322632000,-151.0,0.00013883,2]
[421907879,1778322632000,-500.0,0.00013883,2]
[421907889,1778322632000,-151.0,0.00013883,2]
[421907878,1778322632000,-151.0,0.00013883,2]
[421907884,1778322632000,-500.0,0.00013883,2]
[421907863,1778322632000,-2464.27,0.00013699,2]
[421907881,1778322632000,-500.0,0.00013883,2]
[421907880,1778322632000,-151.0,0.00013883,2]
[421907882,1778322632000,-500.0,0.00013883,2]
[421907885,1778322632000,-151.0,0.00013883,2]
[421907886,1778322632000,-500.0,0.00013883,2]
[421907888,1778322632000,-500.0,0.00013883,2]
[421907875,1778322632000,-500.0,0.00013883,2]
[421907860,1778322632000,-150.99,0.00013698,2]
[421907839,1778322632000,-150.0,0.00012959,2]
[421907855,1778322632000,-13871.08,0.00013625,2]
[421907887,1778322632000,-151.0,0.00013883,2]
[421907830,1778322632000,-1200.0,0.00012705,2]
[421907832,1778322632000,-150.0,0.00012766,2]
[421907834,1778322632000,-63136.41403361,0.00012767,2]
[421907831,1778322632000,-20487.16,0.00012706,2]
[421907833,1778322632000,-192.61419099,0.00012766,2]
[421907835,1778322632000,-2158.98,0.00012826,2]
[421907838,1778322632000,-2000.0,0.00012911,2]
[421907837,1778322632000,-214.73073128,0.00012876,2]
[421907836,1778322632000,-991.91,0.00012864,2]
[421907841,1778322632000,-1147.46,0.00013015,2]
[421907842,1778322632000,-297.43,0.00013049,2]
[421907840,1778322632000,-150.0,0.00013015,2]
[421907857,1778322632000,-9999.99,0.00013625,2]
[421907843,1778322632000,-2158.98,0.00013146,2]
[421907846,1778322632000,-625.86,0.00013419,2]
[421907845,1778322632000,-159.7,0.00013397,2]
[421907847,1778322632000,-5910.99,0.00013457,2]
[421907849,1778322632000,-171.2,0.00013608,2]
[421907848,1778322632000,-2158.98,0.00013467,2]
[421907850,1778322632000,-1001.66957048,0.00013625,2]
[421907851,1778322632000,-2845.7,0.00013625,2]
[421907853,1778322632000,-999.99,0.00013625,2]
[421907852,1778322632000,-9999.99,0.00013625,2]
[421907854,1778322632000,-9999.99,0.00013625,2]
[421907856,1778322632000,-8795.63,0.00013625,2]
[421907858,1778322632000,-1020.57,0.00013625,2]
[421907859,1778322632000,-7638.24,0.00013698,2]
[421907844,1778322632000,-1466.33,0.00013393,2]
[421907890,1778322632000,-500.0,0.00013883,2]
[421907883,1778322632000,-151.0,0.00013883,2]
[421907893,1778322632000,-500.0,0.00013883,2]
[421907921,1778322632000,-151.0,0.00013883,2]
[421907928,1778322632000,-2080.17592889,0.00013883,2]
[421907927,1778322632000,-151.0,0.00013883,2]
[421907926,1778322632000,-151.0,0.00013883,2]
[421907932,1778322632000,-1680.0,0.00013976,2]
[421907929,1778322632000,-500.0,0.00013883,2]
[421907933,1778322632000,-250.0,0.00014,2]
[421907935,1778322632000,-167.82,0.00014099,2]
[421907936,1778322632000,-2158.98,0.00014108,2]
[421907931,1778322632000,-205.78818353,0.00013934,2]
[421907930,1778322632000,-150.0,0.00013934,2]
[421907937,1778322632000,-509.86538559,0.00014136,2]
[421907934,1778322632000,-5379.79822669,0.00014035,2]
[421907938,1778322632000,-500.0,0.00014157,2]
[421907939,1778322632000,-327.39,0.00014285,2]
[421907940,1778322632000,-500.0,0.00014431,2]
[421907947,1778322632000,-500.0,0.00014705,2]
[421907941,1778322632000,-200.0,0.00014431,2]
[421907948,1778322632000,-462.46778028,0.00014812,2]
[421907944,1778322632000,-9999.99,0.00014504,2]
[421907949,1778322632000,-28608.9879,0.00014896,2]
[421907945,1778322632000,-2000.0,0.00014524,2]
[421907943,1778322632000,-25439.9,0.00014504,2]
[421907946,1778322632000,-788.92,0.00014698,2]
[421907950,1778322632000,-2000.0,0.00014896,2]
[421907951,1778322632000,-788.92,0.00014972,2]
[421907892,1778322632000,-409.70823694,0.00013883,2]
[421907925,1778322632000,-151.0,0.00013883,2]
[421907924,1778322632000,-151.0,0.00013883,2]
[421907942,1778322632000,-2157.14243826,0.00014431,2]
[421907923,1778322632000,-151.0,0.00013883,2]
[421907895,1778322632000,-500.0,0.00013883,2]
[421907916,1778322632000,-500.0,0.00013883,2]
[421907891,1778322632000,-151.0,0.00013883,2]
[421907898,1778322632000,-151.0,0.00013883,2]
[421907896,1778322632000,-151.0,0.00013883,2]
[421907897,1778322632000,-500.0,0.00013883,2]
[421907899,1778322632000,-500.0,0.00013883,2]
[421907902,1778322632000,-151.0,0.00013883,2]
[421907901,1778322632000,-500.0,0.00013883,2]
[421907900,1778322632000,-151.0,0.00013883,2]
[421907906,1778322632000,-151.0,0.00013883,2]
[421907908,1778322632000,-151.0,0.00013883,2]
[421907909,1778322632000,-151.0,0.00013883,2]
[421907907,1778322632000,-500.0,0.00013883,2]
[421907894,1778322632000,-151.0,0.00013883,2]
[421907903,1778322632000,-500.0,0.00013883,2]
[421907912,1778322632000,-500.0,0.00013883,2]
[421907918,1778322632000,-500.0,0.00013883,2]
[421907917,1778322632000,-151.0,0.00013883,2]
[421907922,1778322632000,-151.0,0.00013883,2]
[421907915,1778322632000,-151.0,0.00013883,2]
[421907920,1778322632000,-151.0,0.00013883,2]
[421907919,1778322632000,-151.0,0.00013883,2]
[421907914,1778322632000,-500.0,0.00013883,2]
[421907911,1778322632000,-151.0,0.00013883,2]
[421907904,1778322632000,-151.0,0.00013883,2]
[421907905,1778322632000,-500.0,0.00013883,2]
[421907913,1778322632000,-151.0,0.00013883,2]
[421907910,1778322632000,-500.0,0.00013883,2]
[421907988,1778322633000,-500.0,0.00014999,2]
[421907987,1778322633000,-500.0,0.00014999,2]
[421907984,1778322633000,-500.0,0.00014999,2]
[421907982,1778322633000,-422.88900491,0.00014999,2]
[421907980,1778322633000,-500.0,0.00014999,2]
[421907979,1778322633000,-201.90636909,0.00014999,2]
[421907978,1778322633000,-347.60802052,0.00014999,2]
[421907981,1778322633000,-500.0,0.00014999,2]
[421907983,1778322633000,-500.0,0.00014999,2]
[421907985,1778322633000,-500.0,0.00014999,2]
[421907996,1778322633000,-320.0,0.00015014,3]
[421907992,1778322633000,-311688.95965854,0.00015,2]
[421907997,1778322633000,-433.0,0.00015051,2]
[421907991,1778322633000,-500.0,0.00014999,2]
[421907990,1778322633000,-500.0,0.00014999,2]
[421907994,1778322633000,-151.0,0.00015,2]
[421907993,1778322633000,-151.0,0.00015,2]
[421907995,1778322633000,-163.0,0.00015,2]
[421907977,1778322633000,-500.0,0.00014999,2]
[421908000,1778322633000,-625.86,0.00015096,2]
[421907989,1778322633000,-500.0,0.00014999,2]
[421907975,1778322633000,-500.0,0.00014999,2]
[421907961,1778322633000,-500.0,0.00014994,2]
[421907974,1778322633000,-500.0,0.00014999,2]
[421907998,1778322633000,-450.0,0.00015068,2]
[421907952,1778322633000,-609.58332608,0.00014979,2]
[421907953,1778322633000,-200.0,0.00014979,2]
[421907954,1778322633000,-2236.95670848,0.00014979,2]
[421907955,1778322633000,-175.73,0.00014985,2]
[421907957,1778322633000,-500.0,0.00014994,2]
[421907956,1778322633000,-500.0,0.00014994,2]
[421907960,1778322633000,-500.0,0.00014994,2]
[421907958,1778322633000,-500.0,0.00014994,2]
[421907959,1778322633000,-500.0,0.00014994,2]
[421907976,1778322633000,-504.56234086,0.00014999,2]
[421907962,1778322633000,-500.0,0.00014999,2]
[421907963,1778322633000,-584.65487304,0.00014999,2]
[421907965,1778322633000,-500.0,0.00014999,2]
[421907966,1778322633000,-269.38007878,0.00014999,2]
[421907969,1778322633000,-150.0,0.00014999,2]
[421907968,1778322633000,-500.0,0.00014999,2]
[421907971,1778322633000,-500.0,0.00014999,2]
[421907967,1778322633000,-411.9118737,0.00014999,2]
[421907970,1778322633000,-500.0,0.00014999,2]
[421907972,1778322633000,-194.15706667,0.00014999,2]
[421907973,1778322633000,-191.55415086,0.00014999,2]
[421907964,1778322633000,-500.0,0.00014999,2]
[421907999,1778322633000,-150.0,0.00015068,2]
[421907986,1778322633000,-500.0,0.00014999,2]
[421908002,1778322633000,-167.82,0.00015263,2]
[421908036,1778322633000,-345.090286,0.00016516,2]
[421908029,1778322633000,-167.82,0.00016426,2]
[421908033,1778322633000,-500.0,0.00016438,2]
[421908032,1778322633000,-500.0,0.00016438,2]
[421908034,1778322633000,-500.0,0.00016438,2]
[421908028,1778322633000,-500.0,0.00016422,2]
[421908031,1778322633000,-450.0,0.00016438,2]
[421908001,1778322633000,-788.92,0.00015246,2]
[421908038,1778322633000,-160.0,0.00016516,7]
[421908037,1778322633000,-229.356559,0.00016516,2]
[421908030,1778322633000,-1092.6,0.00016438,2]
[421908039,1778322633000,-175.802301,0.00016516,7]
[421908041,1778322633000,-500.0,0.00016622,2]
[421908046,1778322633000,-172.26154201,0.00016769,2]
[421908048,1778322633000,-150.0,0.00016776,2]
[421908047,1778322633000,-625.86,0.00016773,2]
[421908049,1778322633000,-1126.76553212,0.00016815,2]
[421908045,1778322633000,-200.0,0.00016712,2]
[421908043,1778322633000,-1818.73,0.00016663,2]
[421908042,1778322633000,-2494.55939289,0.00016623,2]
[421908044,1778322633000,-175.42,0.00016712,2]
[421908050,1778322633000,-20315.51101589,0.00016853,2]
[421908040,1778322633000,-191.604603,0.00016516,7]
[421908024,1778322633000,-736.0,0.00016353,2]
[421908035,1778322633000,-521.34462995,0.00016438,2]
[421908027,1778322633000,-350.50854249,0.00016422,2]
[421908004,1778322633000,-1901.0,0.00015373,2]
[421908026,1778322633000,-500.0,0.00016422,2]
[421908006,1778322633000,-200.0,0.00015527,2]
[421908009,1778322633000,-250.0,0.00015616,2]
[421908007,1778322633000,-2319.72410669,0.00015527,2]
[421908008,1778322633000,-6348.04815402,0.0001557,2]
[421908003,1778322633000,-1818.73,0.00015347,2]
[421908010,1778322633000,-499.82,0.000157,2]
[421908011,1778322633000,-1818.73,0.00015786,2]
[421908013,1778322633000,-300.0,0.00016,2]
[421908012,1778322633000,-446.53624138,0.0001596,2]
[421908005,1778322633000,-777.24,0.00015519,2]
[421908015,1778322633000,-2405.55389864,0.00016075,2]
[421908014,1778322633000,-200.0,0.00016075,2]
[421908025,1778322633000,-500.0,0.00016422,2]
[421908020,1778322633000,-160.0,0.00016186,7]
[421908023,1778322633000,-1818.73,0.00016224,2]
[421908018,1778322633000,-267.706404,0.00016186,2]
[421908016,1778322633000,-2000.0,0.00016138,2]
[421908017,1778322633000,-350.0,0.00016164,2]
[421908022,1778322633000,-2094.001316,0.00016186,7]
[421908021,1778322633000,-1127.000658,0.00016186,7]
[421908019,1778322633000,-295.654939,0.00016186,2]
[421908059,1778322638000,-380.52932165,0.00013783,2]
[421908058,1778322638000,-27128.50850731,0.00013783,2]
[421908057,1778322638000,-1866.30496704,0.00013783,2]
[421908076,1778322640000,-404.59,0.00013783,2]
[421908074,1778322640000,-302.6193998,0.00013783,2]
[421908075,1778322640000,-698.76000001,0.00013783,2]
[421908080,1778322640000,-746.88331931,0.00013882,2]
[421908078,1778322640000,-2366.52298711,0.00013783,2]
[421908079,1778322640000,-746.88331931,0.00013882,2]
[421908081,1778322640000,-177.20594911,0.00013882,2]
[421908077,1778322640000,-0.00081708,0.00013783,2]
[421908095,1778322643000,-542.93931339,0.00013882,2]
[421908094,1778322643000,-26.73805681,0.00013882,2]
[421908096,1778322643000,-746.88331931,0.00013882,2]
[421908097,1778322643000,-719.0655043,0.00013882,2]
[421908098,1778322643000,-27.81781501,0.00013882,2]
[421908099,1778322643000,-746.88331931,0.00013882,2]
[421908101,1778322643000,-146.20398325,0.00013882,2]
[421908100,1778322643000,-600.67933606,0.00013882,2]
[421908103,1778322643000,-414.57074571,0.00013882,2]
[421908106,1778322643000,-746.88331931,0.00013882,2]
[421908108,1778322643000,-746.88331931,0.00013882,2]
[421908105,1778322643000,-485.39711548,0.00013882,2]
[421908107,1778322643000,-746.88331931,0.00013882,2]
[421908104,1778322643000,-261.48620383,0.00013882,2]
[421908109,1778322643000,-746.88331931,0.00013882,2]
[421908110,1778322643000,-676.43503643,0.00013882,2]
[421908102,1778322643000,-332.3125736,0.00013882,2]
[421908113,1778322645000,-70.44828288,0.00013882,2]
[421908115,1778322645000,-746.88331931,0.00013882,2]
[421908116,1778322645000,-746.88331931,0.00013882,2]
[421908118,1778322645000,-746.88331931,0.00013882,2]
[421908117,1778322645000,-746.88331931,0.00013882,2]
[421908114,1778322645000,-746.88331931,0.00013882,2]
[421908154,1778322646000,-1103.58302385,0.0001728,5]
[421908143,1778322646000,-160.0,0.00016516,7]
[421908147,1778322646000,-212.64,0.00016982,2]
[421908145,1778322646000,-1170.447905,0.00016516,7]
[421908149,1778322646000,-1536.819079,0.00016995,7]
[421908151,1778322646000,-168.76,0.00017172,2]
[421908153,1778322646000,-17245.85,0.0001726,2]
[421908152,1778322646000,-172.26154201,0.00017194,2]
[421908150,1778322646000,-2586.85809042,0.00017171,2]
[421908161,1778322646000,-2000.0,0.00017752,2]
[421908167,1778322646000,-164.93921462,0.00018,2]
[421908159,1778322646000,-2682.57183977,0.00017719,2]
[421908155,1778322646000,-239.730411,0.00017342,7]
[421908158,1778322646000,-297.43,0.00017487,2]
[421908156,1778322646000,-907.123572,0.00017342,7]
[421908160,1778322646000,-250.0,0.00017734,2]
[421908148,1778322646000,-500.0,0.00016986,2]
[421908165,1778322646000,-205.95,0.00017881,2]
[421908162,1778322646000,-426.0,0.00017758,2]
[421908169,1778322646000,-350.0,0.00018,2]
[421908163,1778322646000,-420.09,0.000178,2]
[421908164,1778322646000,-5379.79822666,0.00017859,2]
[421908157,1778322646000,-6348.04815402,0.00017378,2]
[421908144,1778322646000,-665.223952,0.00016516,7]
[421908137,1778322646000,-365.36325084,0.00013882,2]
[421908140,1778322646000,-746.88331931,0.00013882,2]
[421908177,1778322646000,-164.93921462,0.000182,2]
[421908128,1778322646000,-746.88331931,0.00013882,2]
[421908127,1778322646000,-746.88331931,0.00013882,2]
[421908122,1778322646000,-746.88331931,0.00013882,2]
[421908124,1778322646000,-746.88331931,0.00013882,2]
[421908120,1778322646000,-746.88331931,0.00013882,2]
[421908121,1778322646000,-746.88331931,0.00013882,2]
[421908126,1778322646000,-746.88331931,0.00013882,2]
[421908119,1778322646000,-746.88331931,0.00013882,2]
[421908125,1778322646000,-746.88331931,0.00013882,2]
[421908123,1778322646000,-746.88331931,0.00013882,2]
[421908133,1778322646000,-746.88331931,0.00013882,2]
[421908129,1778322646000,-746.88331931,0.00013882,2]
[421908130,1778322646000,-746.88331931,0.00013882,2]
[421908134,1778322646000,-746.88331931,0.00013882,2]
[421908132,1778322646000,-746.88331931,0.00013882,2]
[421908131,1778322646000,-746.88331931,0.00013882,2]
[421908135,1778322646000,-746.88331931,0.00013882,2]
[421908136,1778322646000,-381.52006847,0.00013882,2]
[421908139,1778322646000,-746.88331931,0.00013882,2]
[421908142,1778322646000,-746.88331931,0.00013882,2]
[421908138,1778322646000,-746.88331931,0.00013882,2]
[421908141,1778322646000,-746.88331931,0.00013882,2]
[421908146,1778322646000,-24838.22542787,0.00016853,2]
[421908171,1778322646000,-624.0,0.00018003,2]
[421908259,1778322646000,-356.0,0.0002,2]
[421908175,1778322646000,-422.4,0.000182,2]
[421908219,1778322646000,-2000.0,0.00019366,2]
[421908220,1778322646000,-151.0,0.00019676,2]
[421908221,1778322646000,-235.75327194,0.00019676,2]
[421908225,1778322646000,-262.90206542,0.00019676,2]
[421908227,1778322646000,-272.62944185,0.00019676,2]
[421908229,1778322646000,-282.71673119,0.00019676,2]
[421908231,1778322646000,-293.17725025,0.00019676,2]
[421908222,1778322646000,-244.476143,0.00019676,2]
[421908233,1778322646000,-389.26251655,0.00019676,2]
[421908235,1778322646000,-151.0,0.00019731,2]
[421908218,1778322646000,-2991.49051684,0.00019363,2]
[421908245,1778322646000,-51969.81777545,0.0002,2]
[421908239,1778322646000,-168.84,0.00019931,2]
[421908243,1778322646000,-7816.27656664,0.0002,2]
[421908241,1778322646000,-327.39,0.00019999,2]
[421908247,1778322646000,-400.0,0.0002,2]
[421908249,1778322646000,-338.0,0.0002,2]
[421908251,1778322646000,-212.0,0.0002,2]
[421908253,1778322646000,-384.0,0.0002,2]
[421908255,1778322646000,-2063.0,0.0002,2]
[421908257,1778322646000,-264.0,0.0002,2]
[421908173,1778322646000,-844.71,0.000182,2]
[421908237,1778322646000,-5000.0,0.000199,2]
[421908217,1778322646000,-500.0,0.00019361,2]
[421908223,1778322646000,-253.52176029,0.00019676,2]
[421908216,1778322646000,-6348.04815402,0.00019185,2]
[421908179,1778322646000,-1269.0,0.00018228,2]
[421908182,1778322646000,-1222.0,0.00018228,2]
[421908181,1778322646000,-150.0,0.00018228,2]
[421908184,1778322646000,-3539.0,0.00018228,2]
[421908215,1778322646000,-260.79835149,0.00019178,2]
[421908188,1778322646000,-2781.82699784,0.00018267,2]
[421908186,1778322646000,-925.0,0.00018228,2]
[421908190,1778322646000,-214.0,0.00018307,5]
[421908192,1778322646000,-164.93921462,0.000184,2]
[421908196,1778322646000,-625.86,0.00018451,2]
[421908206,1778322646000,-2884.75459676,0.00018815,2]
[421908200,1778322646000,-350.0,0.0001863,5]
[421908194,1778322646000,-1092.6,0.0001841,2]
[421908202,1778322646000,-157.504199,0.0001866,2]
[421908207,1778322646000,-471.704257,0.00018994,7]
[421908212,1778322646000,-250.0,0.00019178,2]
[421908214,1778322646000,-250.0,0.00019178,2]
[421908211,1778322646000,-156.0,0.00019,2]
[421908209,1778322646000,-422.4,0.00019,2]
[421908213,1778322646000,-250.0,0.00019178,2]
[421908204,1778322646000,-500.0,0.0001878,2]
[421908208,1778322646000,-844.71,0.00019,2]
[421908198,1778322646000,-799.145921,0.00018614,7]
[421908210,1778322646000,-156.0,0.00019,2]
[421908287,1778322647000,-363.822769,0.0002,2]
[421908277,1778322647000,-989.59833,0.0002,2]
[421908291,1778322647000,-363.822769,0.0002,2]
[421908285,1778322647000,-363.822769,0.0002,2]
[421908281,1778322647000,-989.59833,0.0002,2]
[421908279,1778322647000,-989.59833,0.0002,2]
[421908275,1778322647000,-151.0,0.0002,2]
[421908263,1778322647000,-170.85828628,0.0002,2]
[421908273,1778322647000,-151.0,0.0002,2]
[421908265,1778322647000,-787.0,0.0002,2]
[421908271,1778322647000,-151.0,0.0002,2]
[421908267,1778322647000,-151.0,0.0002,2]
[421908269,1778322647000,-151.0,0.0002,2]
[421908261,1778322647000,-157.73873204,0.0002,2]
[421908289,1778322647000,-363.822769,0.0002,2]
[421908283,1778322647000,-989.59833,0.0002,2]
[421908297,1778322647000,-625.86,0.00020128,2]
[421908313,1778322647000,-395.0,0.00020576,2]
[421908294,1778322647000,-199.13077124,0.0002,2]
[421908314,1778322647000,-151.0,0.00020578,2]
[421908311,1778322647000,-395.0,0.00020524,2]
[421908312,1778322647000,-164.0,0.00020534,2]
[421908310,1778322647000,-1000.0,0.00020512,2]
[421908308,1778322647000,-500.0,0.00020491,2]
[421908309,1778322647000,-361.0,0.00020492,5]
[421908307,1778322647000,-500.0,0.00020491,2]
[421908305,1778322647000,-77.50396123,0.00020487,2]
[421908306,1778322647000,-500.0,0.00020491,2]
[421908303,1778322647000,-512.86008172,0.00020487,2]
[421908304,1778322647000,-422.49603877,0.00020487,2]
[421908302,1778322647000,-500.0,0.00020487,2]
[421908301,1778322647000,-529.93956559,0.00020387,2]
[421908300,1778322647000,-1092.6,0.00020381,2]
[421908298,1778322647000,-161.0,0.00020187,2]
[421908315,1778322647000,-3.44493117,0.00020578,2]
[421908292,1778322647000,-199.13077124,0.0002,2]
[421908316,1778322669000,-220.50806861,0.00013782,2]
[421908317,1778322704000,-1644.45547985,0.00013882,2]
[421908318,1778322705000,-500.0,0.00014135,2]
[421908319,1778322718000,-5000.01,0.0001726,2]
[421908320,1778322753000,-1308.21,0.00016753,2]
[421908323,1778322766000,-1308.21,0.00016753,2]
[421908321,1778322766000,-150.0,0.0001286,2]
[421908322,1778322766000,-1158.21,0.00016753,2]
[421908324,1778322767000,-1225.37,0.00016753,2]
[421908325,1778322767000,-2466.42,0.00017007,2]
[421908326,1778322777000,500.0,0.00014391,2]
[421908327,1778322780000,151.0,0.00014391,2]
[421908328,1778322780000,151.0,0.00014391,2]
[421908330,1778322781000,151.0,0.00014391,2]
[421908329,1778322781000,151.0,0.00014391,2]
[421908332,1778322782000,2080.17592889,0.00014391,2]
[421908331,1778322782000,151.0,0.00014391,2]
[421908333,1778322783000,151.0,0.00014391,2]
[421908335,1778322783000,151.0,0.00014391,2]
[421908334,1778322783000,470.37736413,0.00014939,2]
[421908336,1778322784000,151.0,0.00014391,2]
[421908337,1778322785000,151.0,0.00014391,2]
[421908340,1778322786000,224.791036,0.000245,120]
[421908339,1778322786000,151.0,0.00014391,2]
[421908338,1778322786000,151.0,0.00014391,2]
[421908342,1778322787000,151.0,0.00014391,2]
[421908341,1778322787000,151.0,0.00014391,2]
[421908343,1778322788000,151.0,0.00014391,2]
[421908344,1778322789000,151.0,0.00014391,2]
[421908345,1778322789000,151.0,0.00014391,2]
[421908346,1778322790000,151.0,0.00014391,2]
[421908348,1778322791000,151.0,0.00014391,2]
[421908347,1778322791000,151.0,0.00014391,2]
[421908349,1778322792000,151.0,0.00014391,2]
[421908351,1778322882000,8641.01,0.00012667,2]
[421908352,1778322882000,10000.01,0.00012667,2]
[421908353,1778322882000,10000.01,0.00012667,2]
[421908355,1778322882000,10000.01,0.00012667,2]
[421908354,1778322882000,10000.01,0.00012667,2]
[421908357,1778322882000,10000.01,0.00012667,2]
[421908358,1778322882000,10000.01,0.00012667,2]
[421908360,1778322882000,10000.01,0.00012667,2]
[421908359,1778322882000,10000.01,0.00012667,2]
[421908356,1778322882000,10000.01,0.00012667,2]
[421908361,1778322896000,-10000.01,0.00012667,2]
[421908365,1778323111000,-10000.01,0.00012667,2]
[421908364,1778323111000,-4717.45670698,0.00012667,2]
[421908363,1778323111000,-150.0,0.00012666,2]
[421908362,1778323111000,-421.0,0.00012666,2]
[421908366,1778323112000,-10000.01,0.00012667,2]
[421908367,1778323112000,1615.89,0.00030137,120]
[421908370,1778323112000,-5000.01,0.00012667,2]
[421908369,1778323112000,1211.92,0.00030137,120]
[421908368,1778323112000,-10000.01,0.00012667,2]
[421908373,1778323113000,-5000.01,0.00012667,2]
[421908372,1778323113000,888.88,0.00030137,120]
[421908371,1778323113000,-5000.01,0.00012667,2]
[421908375,1778323114000,888.88,0.00030137,120]
[421908376,1778323114000,1268.7594546,0.0003013,120]
[421908374,1778323114000,-5000.01,0.00012667,2]
[421908377,1778323128000,-10000.01,0.00012667,2]
[421908379,1778323151000,888.88,0.00030137,120]
[421908378,1778323151000,-10000.01,0.00012567,2]
[421908381,1778323152000,197.060385,0.00024447,120]
[421908380,1778323152000,-10000.01,0.00012567,2]
[421908383,1778323169000,205.74422882,0.00028058,120]
[421908382,1778323169000,-300.0,0.00012566,2]
[421908384,1778323170000,666.66,0.00030137,120]
[421908385,1778323345000,271.0,0.00030136,120]
[421908386,1778323362000,2443.0,0.00030136,120]
[421908429,1778323832000,-1080.04173227,0.00012666,2]
[421908431,1778323832000,-1080.04173227,0.00012666,2]
[421908420,1778323832000,-1080.04173227,0.00012666,2]
[421908425,1778323832000,-1080.04173227,0.00012666,2]
[421908423,1778323832000,-1080.04173227,0.00012666,2]
[421908424,1778323832000,-1080.04173227,0.00012666,2]
[421908428,1778323832000,-1080.04173227,0.00012666,2]
[421908422,1778323832000,-1080.04173227,0.00012666,2]
[421908430,1778323832000,-1080.04173227,0.00012666,2]
[421908421,1778323832000,-1080.04173227,0.00012666,2]
[421908432,1778323832000,-1080.04173227,0.00012666,2]
[421908434,1778323832000,-1080.04173227,0.00012666,2]
[421908435,1778323832000,-1080.04173227,0.00012666,2]
[421908440,1778323832000,-1080.04173227,0.00012666,2]
[421908437,1778323832000,-1080.04173227,0.00012666,2]
[421908439,1778323832000,-1080.04173227,0.00012666,2]
[421908438,1778323832000,-1080.04173227,0.00012666,2]
[421908442,1778323832000,-1080.04173227,0.00012666,2]
[421908441,1778323832000,-1080.04173227,0.00012666,2]